Cogmind - Beta 14 @@@ ROGUE MODE // 2025.03.13 @ 21:17:17 Player: Skergy Result: Destroyed self with Subdweller Power Source chain reaction Performance ------------- Evolutions (0) 0 Regions Visited (2) 400 Robots Destroyed (24) 120 Value Destroyed (575) 575 Prototype IDs (0) 0 Alien Tech Used (0) 0 Bonus (0) 0 TOTAL SCORE: 1095 Bonus ------- None Cogmind --------- Core Integrity 0/250 Matter 296/300 Energy 200/250 System Corruption 0% Temperature Cool (21) Movement Treading (160) Location -10/Subcaves Parts ------- > --- POWER (1) -------- Ion Engine > --- PROPULSION (2) --- Light Treads Light Treads > --- UTILITY (2) ------ Medium Storage Unit Structural Scanner > --- WEAPON (2) ------- Heavy Riot Gun Barrage Gun > --- INVENTORY (10) --- Ion Engine Subdweller Power Source Aluminum Leg Aluminum Leg Subdweller Monowheel Medium Matter Pod (100) Scrap Shield Beam Cannon Peak State ------------ > --- POWER ------------ Ion Engine > --- PROPULSION ------- Light Treads Light Treads > --- UTILITY ---------- Medium Storage Unit Structural Scanner > --- WEAPON ----------- Heavy Riot Gun Barrage Gun > --- INVENTORY -------- Ion Engine Subdweller Power Source Aluminum Leg Aluminum Leg Subdweller Monowheel Medium Matter Pod Scrap Shield Beam Cannon [Rating: 13] Favorites ----------- Power Ion Engine Engine Ion Engine Propulsion Aluminum Leg Treads Light Treads Leg Aluminum Leg Utility Structural Scanner Device Structural Scanner Storage Medium Storage Unit Protection Weapon Shielding Weapon Light Assault Rifle Energy Gun EM Pulse Gun Energy Cannon Beam Cannon Ballistic Gun Light Assault Rifle Special Weapon Mining Laser Build | -11 -10 -10 ------- Run | Yrd Mat Sub Slots Evolved . | . . . Power . | . . . Propulsion . | . . . Utility . | . . . Weapon . | . . . Parts Attached 28 | 6 11 11 Power 2 | 1 1 . Engine 2 | 1 1 . Core . | . . . Reactor . | . . . Propulsion 8 | 2 3 3 Treads 3 | . . 3 Leg 5 | 2 3 . Wheel . | . . . Hover . | . . . Flight . | . . . Utility 4 | 1 3 . Device 1 | . 1 . Storage 2 | 1 1 . Processor . | . . . Hackware . | . . . Protection 1 | . 1 . Artifact . | . . . Weapon 14 | 2 4 8 Energy Gun 4 | 1 1 2 Energy Cannon 2 | . 1 1 Ballistic Gun 5 | 1 2 2 Ballistic Cannon . | . . . Launcher . | . . . Special Weapon 3 | . . 3 Impact Weapon . | . . . Slashing Weapon . | . . . Piercing Weapon . | . . . Special Melee Weapon . | . . . Unidentified Prototypes . | . . . Parts Lost 8 | . 5 3 Power 1 | . 1 . Propulsion 3 | . 2 1 Utility . | . . . Weapon 4 | . 2 2 Highest Loss Streak 4 | . 4 2 To Critical Strikes . | . . . Average Slot Usage (%) 98 | . 97 99 Engine 14 | . 14 14 Treads 11 | . . 26 Leg 16 | . 27 1 Device 11 | . 10 14 Storage 14 | . 14 14 Protection 1 | . 2 . Energy Gun 5 | . 6 3 Energy Cannon 5 | . 4 6 Ballistic Gun 13 | . 16 9 Special Weapon 3 | . . 7 Peak Build Rating 13 | 6 7 13 Average Rating 7 | 4 6 8 On Entrance 4 | . 6 7 Naked Turns . | . . . Heaviest Build 22 | 14 20 22 Greatest Support 40 | 20 20 40 Greatest Overweight (x) 6 | . 6 . Average Overweight (x) . | . . . Largest Inventory Capacity 10 | 8 10 10 Average Capacity 9 | 6 9 10 Most Carried 10 | 4 9 10 Average Carried 8 | 2 8 9 Final Capacity 10 | 8 10 10 Final Carried 9 | 4 9 9 Class Distribution -------------------- 100% | Mutant Dominant Class ---------------- Mutant | -10/Materials Mutant | -10/Subcaves Resources | -11 -10 -10 ----------- Run | Yrd Mat Sub Matter Collected 713 | 237 348 128 Remotely . | . . . Salvage Created 783 | . 583 200 Parts 49 | . 34 15 Haulers Intercepted . | . . . Recyclers Shooed . | . . . Parts Field Recycled . | . . . Retrieved Matter . | . . . Parts Self-Destructed 8 | . . 8 Prevented . | . . . Kills | -11 -10 -10 ------- Run | Yrd Mat Sub Combat Hostiles Destroyed 21 | . 17 4 Guns 16 | . 15 1 Cannons 4 | . 1 3 AOE 1 | . 1 . Classes Destroyed 6 | . 4 2 Recycler 1 | . 1 . Watcher 2 | . 2 . Swarmer 9 | . 9 . Grunt 8 | . 8 . Sentry 1 | . . 1 Subdweller 3 | . . 3 Best Kill Streak 7 | . 7 2 Combat Bots Only 7 | . 7 2 Max Kills in Single Turn 2 | . 2 1 Gunslinging . | . . . Exploded 1 | . 1 . Melee . | . . . Uniques/NPCs Destroyed . | . . . Combat | -11 -10 -10 -------- Run | Yrd Mat Sub Hostile Shots Fired 125 | . 86 39 Missed 33 | . 20 13 Damage Taken 1223 | . 599 624 Core 261 | . 127 134 Absorbed by Shields . | . . . Core Remaining (%) 100 | 100 . . Volleys Fired 92 | . 50 42 Largest 2 | . 2 2 Hottest 100 | . 80 100 Shots Fired 156 | . 94 62 Gun 111 | . 89 22 Cannon 24 | . 5 19 Launcher . | . . . Special 21 | . . 21 Kinetic 82 | . 62 20 Thermal 45 | . 5 40 Explosive . | . . . Electromagnetic 29 | . 27 2 Robot Hit Streak 27 | . 12 27 Robot Miss Streak 4 | . 4 2 Penetration Max . | . . . Secondary Targets 2 | . 2 . Max Gunslinging Chain 1 | . 1 . Shots Hit Robots 92 | . 57 35 Core Hits 39 | . 29 10 Critical Kills 1 | . 1 . Critical Parts Destroyed . | . . . Critical Strikes 1 | . 1 . Destroy 1 | . 1 . Melee Attacks . | . . . Impact . | . . . Slashing . | . . . Piercing . | . . . Sneak Attacks . | . . . Combat Hostiles . | . . . Follow-up Attacks . | . . . Damage Inflicted 1267 | . 743 524 Guns 782 | . 594 188 Cannons 367 | . 69 298 Explosions 118 | . 80 38 Melee . | . . . Ramming . | . . . Kinetic 547 | . 384 163 Thermal 485 | . 149 336 Explosive . | . . . Electromagnetic 235 | . 210 25 Impact . | . . . Slashing . | . . . Piercing . | . . . Highest Corruption . | . . . Average Corruption . | . . . Corruption Purged . | . . . Corruption Blocked . | . . . Overload Shots . | . . . Overflow Damage . | . . . Projectiles . | . . . Explosions . | . . . Melee . | . . . Knockbacks . | . . . Impact . | . . . Kinetic . | . . . Secondary . | . . . Self-Inflicted Damage 56 | . . 56 Shots 1 | . . 1 Rammed . | . . . Targets Rammed . | . . . Kicked . | . . . Crushed . | . . . Highest Temperature 144 | . 144 14 Average Temperature 27 | . 36 7 Received Heat Transfer 222 | . 132 90 Siege Activations . | . . . Robots Corrupted . | . . . Combat Hostiles . | . . . Parts Fried . | . . . Impact Corruptions . | . . . Robots Melted . | . . . Combat Hostiles . | . . . Parts Melted . | . . . Heat Transferred 927 | . 248 679 Parts Sabotaged . | . . . Parts Stolen . | . . . Parts Stripped . | . . . Power Chain Reactions 2 | . 1 1 Alert | -11 -10 -10 ------- Run | Yrd Mat Sub Peak Influence 230 | . 230 . Initial . | . . . Average 118 | . 124 . Maximum Alert Level 1 | . 1 . Low Security (%) 68 | 100 66 . Level 1 31 | . 33 . Level 2 . | . . . Level 3 . | . . . Level 4 . | . . . Level 5 . | . . . High Security . | . . . Max Security . | . . . Squads Dispatched 2 | . 2 . Investigation 1 | . 1 . Extermination . | . . . Reinforcement 1 | . 1 . Assault . | . . . Garrison . | . . . Intercept . | . . . Searches Triggered . | . . . Construction Impeded . | . . . Haulers Reinforced . | . . . Active Scanning Responses . | . . . Cargo Convoy Interrupts . | . . . Stealth | -11 -10 -10 --------- Run | Yrd Mat Sub Distress Signals 1 | . 1 . Communications Jammed . | . . . Distress Signals . | . . . Times Spotted 27 | . 21 6 Peak Tracking Total 4 | . 4 2 Tactical Retreats 1 | . 1 . Traps | -11 -10 -10 ------- Run | Yrd Mat Sub Traps Triggered 3 | . 2 1 Indirectly . | . . . Trap Hack Attempts . | . . . Triggered . | . . . Disarmed . | . . . Reprogrammed . | . . . Reused . | . . . Traps Extracted . | . . . Installed . | . . . Triggered . | . . . Machines | -11 -10 -10 ---------- Run | Yrd Mat Sub Machines Disabled 1 | . 1 . Max in Single Turn 1 | . 1 . Machines Repaired . | . . . Machines Dismantled . | . . . Machines Sabotaged . | . . . Overloaded Fab Kills . | . . . Hacking | -11 -10 -10 --------- Run | Yrd Mat Sub Machines Accessed 7 | . 5 2 Terminals 4 | . 4 . Fabricators . | . . . Repair Stations . | . . . Recycling Units 1 | . 1 . Scanalyzers . | . . . Garrison Access . | . . . Total Hacks 21 | . 18 3 Successful 16 | . 13 3 Failed 5 | . 5 . Catastrophic . | . . . Database Lockouts . | . . . Manual 15 | . 15 . Terminals 17 | . 17 . Fabricators . | . . . Repair Stations . | . . . Recycling Units 1 | . 1 . Scanalyzers . | . . . Garrison Access . | . . . Terminal Hacks 6 | . 3 3 Record 4 | . 3 1 Open Door 1 | . . 1 Release Object 1 | . . 1 Fabricator Hacks . | . . . Repair Station Hacks . | . . . Recycling Unit Hacks . | . . . Scanalyzer . | . . . Garrison Access Hacks . | . . . Unauthorized Hacks 9 | . 9 . Terminals 8 | . 8 . Track 1 | . 1 . Assimilate 2 | . 2 . Botnet 4 | . 4 . Operators 1 | . 1 . Fabricators . | . . . Repair Stations . | . . . Recycling Units 1 | . 1 . Reject 1 | . 1 . Scanalyzers . | . . . Garrison Access . | . . . Data Cores Recovered . | . . . Used . | . . . Hacking Detections 5 | . 5 . Full Trace Events . | . . . Feedback Events . | . . . Feedback Blocked . | . . . Robot Schematics Acquired . | . . . Robots Built . | . . . Authchips . | . . . Time . | . . . Total Robot Build Rating . | . . . Part Schematics Acquired . | . . . Parts Built . | . . . Authchips . | . . . Time . | . . . Total Part Build Rating . | . . . Parts Repaired . | . . . Time . | . . . Parts Recycled . | . . . Recycled Matter . | . . . Retrieved Matter . | . . . Retrieved Components . | . . . Parts Scanalyzed . | . . . Part Schematics Acquired . | . . . Parts Damaged . | . . . Bothacking | -11 -10 -10 ------------ Run | Yrd Mat Sub Used RIF Installer . | . . . Robots Hacked . | . . . Non-combat . | . . . Combat . | . . . Robot Hacks Applied . | . . . Relay Couplers Released . | . . . Fabnet Peak Effective % . | . . . Robots Rewired . | . . . Allies Hacked . | . . . Hacks Repelled . | . . . Allies | -11 -10 -10 -------- Run | Yrd Mat Sub Total Allies . | . . . Largest Group . | . . . Highest-Rated Group . | . . . Highest-Rated Ally . | . . . Total Orders . | . . . Ally Attacks . | . . . Total Damage . | . . . Kills . | . . . Allies Corrupted . | . . . Allies Melted . | . . . Intel | -11 -10 -10 ------- Run | Yrd Mat Sub Robot Analysis Total . | . . . Derelict Logs Recovered 1 | . . 1 Drone Launches . | . . . Drone Recoveries . | . . . Exploration | -11 -10 -10 ------------- Run | Yrd Mat Sub Turns Passed 2442 | 65 1368 1009 Spaces Moved 994 | 45 432 517 Core 4 | 2 2 . Treads 471 | . . 471 Legs 519 | 43 430 46 Wheels . | . . . Hover . | . . . Flight . | . . . Fastest Speed 50 | 50 120 120 Average Speed 139 | 116 121 156 Slowest Speed 350 | 120 350 160 Overloaded Moves . | . . . Propulsion Burnouts . | . . . Robots Hopped . | . . . Cave-ins Triggered . | . . . Exploration Rate (%) 44 | 4 80 48 Regions Visited 2 Branch Regions 1 Pre-discovered Areas 1 | . . 1 Known Exits Taken . | . . . Unknown Exits Taken 2 | 1 1 . Scrap Searched 2 | . . 2 Spaces Dug . | . . . Terrain Destroyed . | . . . Melee . | . . . Projectile . | . . . AOE . | . . . Terrain Rammed . | . . . Walls Destroyed . | . . . Machines Disabled . | . . . Actions | -11 -10 -10 --------- Run | Yrd Mat Sub Total 1851 | 54 1182 615 Wait 716 | . 679 37 Move 992 | 44 431 517 Hop . | . . . Pick Up 16 | 4 8 4 Fast Attach 13 | 6 6 1 Attach 7 | . 4 3 Detach 1 | . 1 . Swap 8 | . 1 7 Drop 5 | . 2 3 Fire 92 | . 50 42 Melee . | . . . Ram . | . . . Kick . | . . . Crush . | . . . Escape Stasis . | . . . Rewire . | . . . Trap . | . . . Miscellaneous 1 | . . 1 Route ------- -11/Scrapyard -10/Materials (discovered 4 exits: [*Mat x2] / [*Min] / *Sub) -10/Subcaves (discovered 2 exits: [*Mat x2]) History --------- Turn | Location | Event 17 | -11/Scrapyard | Discovered new exit (range 15) 66 | -11/Scrapyard | Entered Materials 192 | -10/Materials | Discovered new exit (range 16) 279 | -10/Materials | Discovered new exit (range 15) 306 | -10/Materials | Build established: Mutant 528 | -10/Materials | Discovered new exit (range 16) 960 | -10/Materials | Core integrity fell below 50% 984 | -10/Materials | Destroyed 7 combat bots 992 | -10/Materials | Lost 4 parts (1p2n1w) 1147 | -10/Materials | Discovered new exit (range 10) 1434 | -10/Materials | Entered Subcaves 1462 | -10/Subcaves | Learned Materials emergency access door positions 1705 | -10/Subcaves | Discovered new exit (range 8) 1824 | -10/Subcaves | Released subatomizers from SUBCON Basin 1848 | -10/Subcaves | Discovered new exit (range 11) 1876 | -10/Subcaves | Shifting Twisted Machinery released Hvy. Riot Gun 1943 | -10/Subcaves | Shifting Twisted Machinery released Shrapnel Trap 1978 | -10/Subcaves | Shifting Twisted Machinery released Barrage Gun 2020 | -10/Subcaves | Learned location of Zion (-7) 2020 | -10/Subcaves | Met a Zionite searching for "candidates" 2266 | -10/Subcaves | Shifting Twisted Machinery released Sub. Monowheel 2279 | -10/Subcaves | Shifting Twisted Machinery released Sub. Power Source 2375 | -10/Subcaves | Core integrity fell below 20% 2439 | -10/Subcaves | Disturbed a concealed Subdweller 2442 | -10/Subcaves | Disturbed a concealed Subdweller 2443 | -10/Subcaves | Destroyed self with Subdweller Power Source chain reaction Last Messages --------------- 02213_ Acquired 10 matter. Sub. Monowheel falls loose from the Twisted Machinery. Sub. Power Source falls loose from the Twisted Machinery. 02374_ Triggered Piercing Trap. 02374_ Spikes shoot up from the floor. 02374_ Critical hit (Impale). 02435_ Subatomizers dissect the Wheel. 02436_ Searching scrap... 02436_ Found Sub. Laser. 02436_ Found 66 Matter. 02438_ Searching scrap... 02438_ Found Battle Rifle. 02438_ Found Battle Cannon. 02438_ Found 58 Matter. 02439_ KL-G0M(R) angrily emerges from the Twisted Machinery. 02439_ Mining Laser destroyed. 02440_ Acquired 10 matter. 02441_ Acquired 4 matter. 02442_ TX-B2C(R) angrily emerges from the Twisted Machinery. 02443_ Chain reaction triggered in Sub. Power Source. Map ----- +----------------------------------------------------+ | ?????????????????????????????????????????????????? | | ?????????????????????????????????????????????????? | | ?????????????????????????????????????????????????? | | ?????????????????????????????????????????????????? | | ###??????????????????????????????????????????????? | | ####?????????????????????????????????????????????? | | ###?????????????????????????????????????????????? | | ###????####????????????????????????????????????? | | ### ?? ###????????????????????????????????????? | | ## ##????????????????????????????????????? | | ??????????????????????????????????????? | | ??????????????????????????????????????????? | | #????????????????????????????????????????????????? | | #????????????????????????????????????????????????? | | #????? ###????????????????????????????????????? | | ????? ###????????????????????????????????????? | | ???? ????????????????????????????????????? | | #???? ??????????????????????????????????????? | | ##??? ???? ????????????????????????????? | | ###??? ??? ??????#####?????????????????? | | ###?# ## ? ???##########????????????????? | | ##### ### ? #???###### ###????????????####? | | #### ## ? ##? % ####????##########? | | #### # ##? ##### ####??######## #? | | "##### ### ###? #